Department Family,Entity,Date Paid,Expense Type,Expense Area,Supplier,Transaction Number,Amount (�),Supplier VAT Registration Number
BEIS,Met Office,2021-08-09,11 SERVICES,MARKETS,ACCELERATION EMARKETING,458946,4582.67,848940776
BEIS,Met Office,2021-08-06,11 SERVICES,CHIEF FINANCIAL OFFICER,ADAM PHONES LTD,458922,176.7,538877093
BEIS,Met Office,2021-08-06,11 SERVICES,PEOPLE,ADJUST,457786,0,-
BEIS,Met Office,2021-08-06,11 SERVICES,PEOPLE,ADJUST,458927,595,-
BEIS,Met Office,2021-08-20,03 STAFF COSTS T&S,SERVICES,AIRPORT CAR RENTALS LTD,459208,320,-
BEIS,Met Office,2021-08-06,11 SERVICES,TECHNOLOGY AND CIO,AKAMAI TECHNOLOGIES LTD,458920,4918.08,745091237
BEIS,Met Office,2021-08-06,11 SERVICES,TECHNOLOGY AND CIO,AKAMAI TECHNOLOGIES LTD,458920,25819.95,745091237
BEIS,Met Office,2021-08-04,11 SERVICES,CHIEF FINANCIAL OFFICER,ALLSTAR BUSINESS SOLUTIONS LTD,458805,2973.98,747880191
BEIS,Met Office,2021-08-18,11 SERVICES,CHIEF FINANCIAL OFFICER,ALLSTAR BUSINESS SOLUTIONS LTD,459232,1765.15,747880191
BEIS,Met Office,2021-08-18,11 SERVICES,PROGRAMMES,ALTO AEROSPACE LIMITED,458753,50172.9,275002528
BEIS,Met Office,2021-08-04,11 SERVICES,TECHNOLOGY AND CIO,AMAZON WEB SERVICES INC.,10299,91354.82,N/A
BEIS,Met Office,2021-08-04,11 SERVICES,TECHNOLOGY AND CIO,AMAZON WEB SERVICES INC.,10300,10781.25,N/A
BEIS,Met Office,2021-08-04,11 SERVICES,TECHNOLOGY AND CIO,AMAZON WEB SERVICES INC.,10312,361.67,N/A
BEIS,Met Office,2021-08-04,11 SERVICES,TECHNOLOGY AND CIO,AMAZON WEB SERVICES INC.,10313,0.48,N/A
BEIS,Met Office,2021-08-06,13 MISCELLANEOUS,CHIEF FINANCIAL OFFICER,ANTRIM HILLS SPRING WATER CO LTD,458864,27,517173455
BEIS,Met Office,2021-08-11,11 SERVICES,CHIEF FINANCIAL OFFICER,ANVIL MOBILE LIMITED,459015,82.6,981686175
BEIS,Met Office,2021-08-11,11 SERVICES,CHIEF FINANCIAL OFFICER,ANVIL MOBILE LIMITED,459015,98.6,981686175
BEIS,Met Office,2021-08-11,11 SERVICES,CHIEF FINANCIAL OFFICER,ANVIL MOBILE LIMITED,459015,111.3,981686175
BEIS,Met Office,2021-08-11,11 SERVICES,CHIEF FINANCIAL OFFICER,ANVIL MOBILE LIMITED,459015,34.85,981686175
BEIS,Met Office,2021-08-11,11 SERVICES,CHIEF FINANCIAL OFFICER,ANVIL MOBILE LIMITED,459015,43.6,981686175
BEIS,Met Office,2021-08-09,11 SERVICES,CHIEF FINANCIAL OFFICER,APPLE CENTRAL TAXIS,458945,244.6,449238720
BEIS,Met Office,2021-08-11,11 SERVICES,CHIEF FINANCIAL OFFICER,APPLE CENTRAL TAXIS,459077,463,449238720
BEIS,Met Office,2021-08-06,06 ACCOMMODATION,CHIEF FINANCIAL OFFICER,APPLECROSS TRUST LTD,458932,777,596728869
BEIS,Met Office,2021-08-20,12 INTERNATIONAL,MARKETS,APPLIED SATELLITE TECHNOLOGY SYSTEMS LTD,459268,30.38,720108683
BEIS,Met Office,2021-08-23,11 SERVICES,SERVICES,APPLIED SATELLITE TECHNOLOGY SYSTEMS LTD,459269,45.01,720108683
BEIS,Met Office,2021-08-23,11 SERVICES,SERVICES,APPLIED SATELLITE TECHNOLOGY SYSTEMS LTD,459270,60.75,720108683
BEIS,Met Office,2021-08-23,COMPUTER SOFTWARE,SERVICES,APPLIED SATELLITE TECHNOLOGY SYSTEMS LTD,459273,7826.77,720108683
BEIS,Met Office,2021-08-13,07 EQUIPMENT,SERVICES,AST CONNECTIONS LTD,458995,15,720108683
BEIS,Met Office,2021-08-13,07 EQUIPMENT,SERVICES,AST CONNECTIONS LTD,458995,1807.68,720108683
BEIS,Met Office,2021-08-13,07 EQUIPMENT,SERVICES,AST CONNECTIONS LTD,458995,1807.68,720108683
BEIS,Met Office,2021-08-06,13 MISCELLANEOUS,SERVICES,AUTOMATED DOCUMENT SERVICES LTD,458789,6793.72,105353449
BEIS,Met Office,2021-08-02,11 SERVICES,PROGRAMMES,BAE SYSTEMS APPLIED INTELLIGENCE LIMITED,458724,15946,GB641407169
BEIS,Met Office,2021-08-09,11 SERVICES,TECHNOLOGY AND CIO,BAE SYSTEMS APPLIED INTELLIGENCE LIMITED,458725,10279.76,GB641407169
BEIS,Met Office,2021-08-09,11 SERVICES,TECHNOLOGY AND CIO,BAE SYSTEMS APPLIED INTELLIGENCE LIMITED,458727,11091.32,GB641407169
BEIS,Met Office,2021-08-09,11 SERVICES,TECHNOLOGY AND CIO,BAE SYSTEMS APPLIED INTELLIGENCE LIMITED,458728,1623.12,GB641407169
BEIS,Met Office,2021-08-09,11 SERVICES,TECHNOLOGY AND CIO,BAE SYSTEMS APPLIED INTELLIGENCE LIMITED,458729,21105,GB641407169
BEIS,Met Office,2021-08-09,11 SERVICES,TECHNOLOGY AND CIO,BAE SYSTEMS APPLIED INTELLIGENCE LIMITED,458730,13200,GB641407169
BEIS,Met Office,2021-08-09,11 SERVICES,TECHNOLOGY AND CIO,BAE SYSTEMS APPLIED INTELLIGENCE LIMITED,458731,9468.2,GB641407169
BEIS,Met Office,2021-08-18,11 SERVICES,PROGRAMMES,BAE SYSTEMS APPLIED INTELLIGENCE LIMITED,459233,8104,GB641407169
BEIS,Met Office,2021-08-20,13 MISCELLANEOUS,CHIEF FINANCIAL OFFICER,BANNER GROUP LIMITED,459189,5.24,GB391085740
BEIS,Met Office,2021-08-20,13 MISCELLANEOUS,CHIEF FINANCIAL OFFICER,BANNER GROUP LIMITED,459190,7.73,GB391085740
BEIS,Met Office,2021-08-11,REVENUE,MARKETS,Barcelona Supercomputing Center,22923,31511.3,ESS0800099D
BEIS,Met Office,2021-08-25,11 SERVICES,MARKETS,"BASILIO SOZINHO CUBULA SERVI�OS, E.I.",10342,4404.01,N/A
BEIS,Met Office,2021-08-26,11 SERVICES,MARKETS,BEIS,459122,502860,888825550
BEIS,Met Office,2021-08-20,06 ACCOMMODATION,CHIEF FINANCIAL OFFICER,Belfast International Airport Ltd,459209,2782.4,617777601
BEIS,Met Office,2021-08-18,06 ACCOMMODATION,CHIEF FINANCIAL OFFICER,BIDVEST NOONAN UK LTD,458444,-395.68,GB847176988
BEIS,Met Office,2021-08-18,06 ACCOMMODATION,CHIEF FINANCIAL OFFICER,BIDVEST NOONAN UK LTD,459131,890.6,GB847176988
BEIS,Met Office,2021-08-18,06 ACCOMMODATION,CHIEF FINANCIAL OFFICER,BIDVEST NOONAN UK LTD,459132,395.68,GB847176988
BEIS,Met Office,2021-08-25,06 ACCOMMODATION,CHIEF FINANCIAL OFFICER,Biffa Waste Services Ltd,458207,212,537911627
BEIS,Met Office,2021-08-25,06 ACCOMMODATION,CHIEF FINANCIAL OFFICER,Biffa Waste Services Ltd,459406,262.47,537911627
BEIS,Met Office,2021-08-25,06 ACCOMMODATION,CHIEF FINANCIAL OFFICER,Biffa Waste Services Ltd,459407,1088.99,537911627
BEIS,Met Office,2021-08-25,06 ACCOMMODATION,CHIEF FINANCIAL OFFICER,Biffa Waste Services Ltd,459408,97.11,537911627
BEIS,Met Office,2021-08-25,06 ACCOMMODATION,CHIEF FINANCIAL OFFICER,Biffa Waste Services Ltd,459409,61.1,537911627
BEIS,Met Office,2021-08-25,06 ACCOMMODATION,CHIEF FINANCIAL OFFICER,Biffa Waste Services Ltd,459410,563.55,537911627
BEIS,Met Office,2021-08-25,06 ACCOMMODATION,CHIEF FINANCIAL OFFICER,Biffa Waste Services Ltd,459411,66.95,537911627
BEIS,Met Office,2021-08-25,06 ACCOMMODATION,CHIEF FINANCIAL OFFICER,Biffa Waste Services Ltd,459412,540.02,537911627
BEIS,Met Office,2021-08-25,06 ACCOMMODATION,CHIEF FINANCIAL OFFICER,Biffa Waste Services Ltd,459413,378.04,537911627
BEIS,Met Office,2021-08-25,06 ACCOMMODATION,CHIEF FINANCIAL OFFICER,Biffa Waste Services Ltd,459414,538.07,537911627
BEIS,Met Office,2021-08-23,11 SERVICES,PEOPLE,BITPOD LIMITED,459319,1294.73,124 9359 03
BEIS,Met Office,2021-08-16,11 SERVICES,PROGRAMMES,BJSS LIMITED,459129,24225,613295452
BEIS,Met Office,2021-08-16,11 SERVICES,PROGRAMMES,BJSS LIMITED,459138,57575,613295452
BEIS,Met Office,2021-08-18,11 SERVICES,PROGRAMMES,BJSS LIMITED,459139,7343.75,613295452
BEIS,Met Office,2021-08-20,11 SERVICES,MARKETS,BJSS LIMITED,459318,4115,613295452
BEIS,Met Office,2021-08-11,11 SERVICES,PROGRAMMES,BLUE ACOUSTICS,459018,765,265974161
BEIS,Met Office,2021-08-06,11 SERVICES,TECHNOLOGY AND CIO,BOXXE,458917,484,734245248
BEIS,Met Office,2021-08-02,06 ACCOMMODATION,CHIEF FINANCIAL OFFICER,British Gas Trading Ltd,458701,34.43,684966762
BEIS,Met Office,2021-08-09,06 ACCOMMODATION,CHIEF FINANCIAL OFFICER,BROXTOWE BOROUGH COUNCIL,458791,11976,118033013
BEIS,Met Office,2021-08-23,11 SERVICES,CHIEF FINANCIAL OFFICER,BT CONFERENCING,459331,99.06,245719348
BEIS,Met Office,2021-08-02,11 SERVICES,CHIEF FINANCIAL OFFICER,BT GLOBAL SERVICES,458699,14223.48,245719348
BEIS,Met Office,2021-08-23,11 SERVICES,CHIEF FINANCIAL OFFICER,BT GLOBAL SERVICES,459336,11213.87,245719348
BEIS,Met Office,2021-08-09,06 ACCOMMODATION,CHIEF FINANCIAL OFFICER,BUSINESS STREAM,458938,6.64,945850885
BEIS,Met Office,2021-08-18,11 SERVICES,SERVICES,BUSINESS SUPPORT CENTRE LTD,446175,28,927365208
BEIS,Met Office,2021-08-09,10 EQUIPMENT MAINTENANCE,SERVICES,BUSINESS SUPPORT CENTRE LTD,458814,105,927365208
BEIS,Met Office,2021-08-13,06 ACCOMMODATION,CHIEF FINANCIAL OFFICER,BUSINESS SUPPORT CENTRE LTD,459137,25.96,927365208
BEIS,Met Office,2021-08-04,11 SERVICES,MARKETS,CACI LTD,458859,91128.75,380609841
BEIS,Met Office,2021-08-06,06 ACCOMMODATION,CHIEF FINANCIAL OFFICER,CALOR GAS LIMITED,458849,19.61,207610984
BEIS,Met Office,2021-08-06,06 ACCOMMODATION,CHIEF FINANCIAL OFFICER,CALOR GAS LIMITED,458850,34.25,207610984
BEIS,Met Office,2021-08-06,06 ACCOMMODATION,CHIEF FINANCIAL OFFICER,CALOR GAS LIMITED,458851,34.25,207610984
BEIS,Met Office,2021-08-06,06 ACCOMMODATION,CHIEF FINANCIAL OFFICER,CALOR GAS LIMITED,458852,49.18,207610984
BEIS,Met Office,2021-08-06,06 ACCOMMODATION,CHIEF FINANCIAL OFFICER,CALOR GAS LIMITED,458853,34.25,207610984
BEIS,Met Office,2021-08-06,06 ACCOMMODATION,CHIEF FINANCIAL OFFICER,CALOR GAS LIMITED,458854,34.25,207610984
BEIS,Met Office,2021-08-06,06 ACCOMMODATION,CHIEF FINANCIAL OFFICER,CALOR GAS LIMITED,458855,34.25,207610984
BEIS,Met Office,2021-08-06,06 ACCOMMODATION,CHIEF FINANCIAL OFFICER,CALOR GAS LIMITED,458856,1008.51,207610984
BEIS,Met Office,2021-08-25,06 ACCOMMODATION,CHIEF FINANCIAL OFFICER,CALOR GAS LIMITED,459465,49.18,207610984
BEIS,Met Office,2021-08-25,STOCK,SERVICES,Campbell Scientific Ltd,459378,0,428453933
BEIS,Met Office,2021-08-25,STOCK,SERVICES,Campbell Scientific Ltd,459378,0,428453933
BEIS,Met Office,2021-08-25,TRADE CREDITORS,SERVICES,Campbell Scientific Ltd,459378,2560.5,428453933
BEIS,Met Office,2021-08-25,TRADE CREDITORS,SERVICES,Campbell Scientific Ltd,459378,13612.5,428453933
BEIS,Met Office,2021-08-25,11 SERVICES,SERVICES,Campbell Scientific Ltd,459378,118,428453933
BEIS,Met Office,2021-08-11,13 MISCELLANEOUS,CHIEF FINANCIAL OFFICER,CANON UK LTD,458253,-410.89,523797128
BEIS,Met Office,2021-08-11,13 MISCELLANEOUS,CHIEF FINANCIAL OFFICER,CANON UK LTD,458254,-322.4,523797128
BEIS,Met Office,2021-08-11,13 MISCELLANEOUS,CHIEF FINANCIAL OFFICER,CANON UK LTD,459013,949.14,523797128
BEIS,Met Office,2021-08-25,13 MISCELLANEOUS,CHIEF FINANCIAL OFFICER,CANON UK LTD,459322,481.75,523797128
BEIS,Met Office,2021-08-06,11 SERVICES,PROGRAMMES,CARDIFF COMMISSIONING LTD,458842,1800,484190139
BEIS,Met Office,2021-08-06,13 MISCELLANEOUS,CHIEF FINANCIAL OFFICER,CARDIFF EXECUTIVE CENTRE LTD,458748,7.18,864497378
BEIS,Met Office,2021-08-27,03 STAFF COSTS T&S,SERVICES,CARTUS LTD,459019,137,768489458
BEIS,Met Office,2021-08-04,08 SOFTWARE LICENCES,PEOPLE,CATALYST IT,458839,2075,978169262
BEIS,Met Office,2021-08-25,06 ACCOMMODATION,CHIEF FINANCIAL OFFICER,CBRE MANAGED SERVICES LTD,459363,10782.76,853936883
BEIS,Met Office,2021-08-25,06 ACCOMMODATION,CHIEF FINANCIAL OFFICER,CBRE MANAGED SERVICES LTD,459364,27079.82,853936883
BEIS,Met Office,2021-08-25,08 SOFTWARE LICENCES,CHIEF FINANCIAL OFFICER,CEMAR,459402,90,915042161
BEIS,Met Office,2021-08-06,03 STAFF COSTS T&S,SERVICES,CHARLIE'S TRAVEL LTD,458764,176,783848277
BEIS,Met Office,2021-08-06,03 STAFF COSTS T&S,SERVICES,CHARLIE'S TRAVEL LTD,458764,3206,783848277
BEIS,Met Office,2021-08-06,03 STAFF COSTS T&S,SERVICES,CHARLIE'S TRAVEL LTD,458764,889.83,783848277
BEIS,Met Office,2021-08-06,11 SERVICES,PEOPLE,CIVICA UK LIMITED,458923,7162.66,391171065
BEIS,Met Office,2021-08-18,11 SERVICES,MARKETS,CLARKSON ELECTRICAL SOLUTIONS LTD,459218,83.06,138576872
BEIS,Met Office,2021-08-13,11 SERVICES,TECHNOLOGY AND CIO,CLOUDREACH EUROPE LIMITED,459141,5150,978187168
BEIS,Met Office,2021-08-16,11 SERVICES,SERVICES,CLOUDREACH EUROPE LIMITED,459142,7300,978187168
BEIS,Met Office,2021-08-18,11 SERVICES,TECHNOLOGY AND CIO,CLOUDREACH EUROPE LIMITED,459191,2159.2,978187168
BEIS,Met Office,2021-08-04,11 SERVICES,SERVICES,COLLECTE LOCALISATION SATELLITES (C.L.S.),22820,6210.58,FR95338034390
BEIS,Met Office,2021-08-04,11 SERVICES,SERVICES,COLLECTE LOCALISATION SATELLITES (C.L.S.),22821,7190.11,FR95338034390
BEIS,Met Office,2021-08-02,08 SOFTWARE LICENCES,TECHNOLOGY AND CIO,COMPUTACENTER (UK) LTD,458734,19040.84,490334648
BEIS,Met Office,2021-08-06,07 EQUIPMENT,TECHNOLOGY AND CIO,COMPUTACENTER (UK) LTD,458918,692.8,490334648
BEIS,Met Office,2021-08-11,07 EQUIPMENT,SERVICES,COMPUTACENTER (UK) LTD,458948,310.05,490334648
BEIS,Met Office,2021-08-11,07 EQUIPMENT,SERVICES,COMPUTACENTER (UK) LTD,458948,145.9,490334648
BEIS,Met Office,2021-08-11,08 SOFTWARE LICENCES,TECHNOLOGY AND CIO,COMPUTACENTER (UK) LTD,459020,2817.96,490334648
BEIS,Met Office,2021-08-25,11 SERVICES,SERVICES,COMPUTACENTER (UK) LTD,459448,504.88,490334648
BEIS,Met Office,2021-08-18,11 SERVICES,MARKETS,CONSULTEC,22844,56.75,400005915
BEIS,Met Office,2021-08-18,11 SERVICES,MARKETS,CONSULTEC,22845,1418.65,400005915
BEIS,Met Office,2021-08-25,11 SERVICES,MARKETS,CONSULTEC,22955,3384.41,400005915
BEIS,Met Office,2021-08-11,06 ACCOMMODATION,CHIEF FINANCIAL OFFICER,CORONA ENERGY LTD,458989,10392.69,577704800
BEIS,Met Office,2021-08-25,11 SERVICES,CHIEF FINANCIAL OFFICER,DBS FINANCE RECEIPTS CTS,22963,167.4,888805068
BEIS,Met Office,2021-08-18,11 SERVICES,CHIEF FINANCIAL OFFICER,DBS FINANCE RECEIPTS CTS,459162,195.12,888805068
BEIS,Met Office,2021-08-18,11 SERVICES,CHIEF FINANCIAL OFFICER,DBS FINANCE RECEIPTS CTS,459261,-195.12,888805068
BEIS,Met Office,2021-08-09,08 SOFTWARE LICENCES,TECHNOLOGY AND CIO,DEPARTMENT OF FINANCE AND PERSONNEL,449263,-101,888808059
BEIS,Met Office,2021-08-09,06 ACCOMMODATION,CHIEF FINANCIAL OFFICER,DEPARTMENT OF FINANCE AND PERSONNEL,458937,44410.92,888808059
BEIS,Met Office,2021-08-02,PAYE AND VAT,OTHER,DHL INTERNATIONAL (UK) LTD,458696,61.58,751812341
BEIS,Met Office,2021-08-02,11 SERVICES,SERVICES,DHL INTERNATIONAL (UK) LTD,458696,11,751812341
BEIS,Met Office,2021-08-09,08 SOFTWARE LICENCES,OFFICE OF THE CEO,DILIGENT BOARDBOOKS LIMITED,458865,330,929451011
BEIS,Met Office,2021-08-02,11 SERVICES,MARKETS,DJS RESEARCH LIMITED,458733,9894,775718779
BEIS,Met Office,2021-08-06,11 SERVICES,PROGRAMMES,Dstl,458857,3998.61,888805166
BEIS,Met Office,2021-08-06,11 SERVICES,PROGRAMMES,Dstl,458858,3554.68,888805166
BEIS,Met Office,2021-08-06,06 ACCOMMODATION,CHIEF FINANCIAL OFFICER,DUNSTAFFNAGE ESTATE,458936,750,-
BEIS,Met Office,2021-08-06,13 MISCELLANEOUS,CHIEF FINANCIAL OFFICER,EAST ANGLIAN WATER COOLER CO,458759,22.6,676668178
BEIS,Met Office,2021-08-25,11 SERVICES,PEOPLE,EDENRED - CHILDCARE VOUCHERS,459335,13781.5,649 503 520
BEIS,Met Office,2021-08-11,11 SERVICES,PEOPLE,EDENRED I&M (IRS VOUCHERS),458921,20843.7,649 503 520
BEIS,Met Office,2021-08-20,06 ACCOMMODATION,CHIEF FINANCIAL OFFICER,EDF ENERGY CUSTOMERS PLC,458740,-103788.29,523041202
BEIS,Met Office,2021-08-20,06 ACCOMMODATION,CHIEF FINANCIAL OFFICER,EDF ENERGY CUSTOMERS PLC,458741,-135480.1,523041202
BEIS,Met Office,2021-08-20,06 ACCOMMODATION,CHIEF FINANCIAL OFFICER,EDF ENERGY CUSTOMERS PLC,458742,103598.65,523041202
BEIS,Met Office,2021-08-20,06 ACCOMMODATION,CHIEF FINANCIAL OFFICER,EDF ENERGY CUSTOMERS PLC,458743,134914.25,523041202
BEIS,Met Office,2021-08-20,06 ACCOMMODATION,CHIEF FINANCIAL OFFICER,EDF ENERGY CUSTOMERS PLC,459171,103788.29,523041202
BEIS,Met Office,2021-08-20,06 ACCOMMODATION,CHIEF FINANCIAL OFFICER,EDF ENERGY CUSTOMERS PLC,459172,135480.1,523041202
BEIS,Met Office,2021-08-20,06 ACCOMMODATION,CHIEF FINANCIAL OFFICER,EDF ENERGY CUSTOMERS PLC,459173,393176.29,523041202
BEIS,Met Office,2021-08-25,06 ACCOMMODATION,CHIEF FINANCIAL OFFICER,EDF ENERGY CUSTOMERS PLC,459315,138008.87,523041202
BEIS,Met Office,2021-08-25,06 ACCOMMODATION,CHIEF FINANCIAL OFFICER,EDF ENERGY CUSTOMERS PLC,459317,133977.63,523041202
BEIS,Met Office,2021-08-27,10 EQUIPMENT MAINTENANCE,SERVICES,ELASTICSEARCH LTD,457908,155.99,155790484
BEIS,Met Office,2021-08-27,10 EQUIPMENT MAINTENANCE,SERVICES,ELASTICSEARCH LTD,458824,341.76,155790484
BEIS,Met Office,2021-08-04,03 STAFF COSTS T&S,CHIEF FINANCIAL OFFICER,ENTERPRISE RENT A CAR UK LTD,458803,994.5,215557314
BEIS,Met Office,2021-08-11,03 STAFF COSTS T&S,CHIEF FINANCIAL OFFICER,ENTERPRISE RENT A CAR UK LTD,459040,945.57,215557314
BEIS,Met Office,2021-08-18,03 STAFF COSTS T&S,CHIEF FINANCIAL OFFICER,ENTERPRISE RENT A CAR UK LTD,459180,796.48,215557314
BEIS,Met Office,2021-08-18,03 STAFF COSTS T&S,CHIEF FINANCIAL OFFICER,ENTERPRISE RENT A CAR UK LTD,459207,208.21,215557314
BEIS,Met Office,2021-08-18,03 STAFF COSTS T&S,CHIEF FINANCIAL OFFICER,ENTERPRISE RENT A CAR UK LTD,459216,270.67,215557314
BEIS,Met Office,2021-08-23,03 STAFF COSTS T&S,CHIEF FINANCIAL OFFICER,ENTERPRISE RENT A CAR UK LTD,459377,476.12,215557314
BEIS,Met Office,2021-08-25,03 STAFF COSTS T&S,CHIEF FINANCIAL OFFICER,ENTERPRISE RENT A CAR UK LTD,459415,733.13,215557314
BEIS,Met Office,2021-08-16,11 SERVICES,MARKETS,ESCOTT HUNT LTD,459165,237.5,815727127
BEIS,Met Office,2021-08-16,11 SERVICES,SCIENCE,ESCOTT HUNT LTD,459168,237.5,815727127
BEIS,Met Office,2021-08-16,11 SERVICES,MARKETS,ESCOTT HUNT LTD,459169,475,815727127
BEIS,Met Office,2021-08-02,03 STAFF COSTS T&S,PROGRAMMES,EUROPCAR GROUP UK LTD,458569,96.68,581620446
BEIS,Met Office,2021-08-04,11 SERVICES,SERVICES,"EUTELSAT MADERIA, UNIPESSOAL LDA",22819,2926.72,PT511283733
BEIS,Met Office,2021-08-04,11 SERVICES,MARKETS,"EUTELSAT MADERIA, UNIPESSOAL LDA",22937,445.2,PT511283733
BEIS,Met Office,2021-08-04,11 SERVICES,SERVICES,"EUTELSAT MADERIA, UNIPESSOAL LDA",22937,1780.81,PT511283733
BEIS,Met Office,2021-08-25,11 SERVICES,SERVICES,"EUTELSAT MADERIA, UNIPESSOAL LDA",22938,2226.02,PT511283733
BEIS,Met Office,2021-08-11,06 ACCOMMODATION,CHIEF FINANCIAL OFFICER,Exeter & Devon Airport Limited,459014,160,168173978
BEIS,Met Office,2021-08-27,06 ACCOMMODATION,CHIEF FINANCIAL OFFICER,Exeter City Council,453748,140288,142335594
BEIS,Met Office,2021-08-11,11 SERVICES,CHIEF FINANCIAL OFFICER,EXPONENTIAL-E,459046,1891.87,GB798572653
BEIS,Met Office,2021-08-06,11 SERVICES,MARKETS,EYECADEMY LTD,458756,10850,GB937915092
BEIS,Met Office,2021-08-11,03 STAFF COSTS T&S,SERVICES,FALKLAND ISLAND COMPANY LTD,459053,700,N/A
BEIS,Met Office,2021-08-11,03 STAFF COSTS T&S,SERVICES,FALKLAND ISLAND COMPANY LTD,459054,700,N/A
BEIS,Met Office,2021-08-11,03 STAFF COSTS T&S,SERVICES,FALKLAND ISLAND COMPANY LTD,459055,700,N/A
BEIS,Met Office,2021-08-06,11 SERVICES,MARKETS,FCDO,456370,13.81,888813560
BEIS,Met Office,2021-08-11,04 CONTRACTORS,TECHNOLOGY AND CIO,FDM GROUP LIMITED,458990,5400,583540529
BEIS,Met Office,2021-08-11,04 CONTRACTORS,TECHNOLOGY AND CIO,FDM GROUP LIMITED,458991,3600,583540529
BEIS,Met Office,2021-08-11,04 CONTRACTORS,TECHNOLOGY AND CIO,FDM GROUP LIMITED,458992,7560,583540529
BEIS,Met Office,2021-08-11,04 CONTRACTORS,TECHNOLOGY AND CIO,FDM GROUP LIMITED,458993,5940,583540529
BEIS,Met Office,2021-08-11,04 CONTRACTORS,TECHNOLOGY AND CIO,FDM GROUP LIMITED,458994,6600,583540529
BEIS,Met Office,2021-08-04,11 SERVICES,TECHNOLOGY AND CIO,FLYFORM LTD,458793,995,237333808
BEIS,Met Office,2021-08-06,11 SERVICES,TECHNOLOGY AND CIO,FLYFORM LTD,458794,1990,237333808
BEIS,Met Office,2021-08-04,05 CONSULTANTS,PROGRAMMES,FLYFORM LTD,458800,57150,237333808
BEIS,Met Office,2021-08-04,11 SERVICES,TECHNOLOGY AND CIO,FLYFORM LTD,458801,3980,237333808
BEIS,Met Office,2021-08-04,11 SERVICES,TECHNOLOGY AND CIO,FLYFORM LTD,458801,18905,237333808
BEIS,Met Office,2021-08-25,11 SERVICES,CHIEF FINANCIAL OFFICER,G4S FIRE & SECURITY SYSTEMS (UK),459352,3567,238560256
BEIS,Met Office,2021-08-18,11 SERVICES,PROGRAMMES,GAMMA TELECOM LTD,459057,3258.74,823820344
BEIS,Met Office,2021-08-18,11 SERVICES,PROGRAMMES,GAMMA TELECOM LTD,459057,54,823820344
BEIS,Met Office,2021-08-18,11 SERVICES,PROGRAMMES,GAMMA TELECOM LTD,459057,38.14,823820344
BEIS,Met Office,2021-08-11,04 CONTRACTORS,TECHNOLOGY AND CIO,GCS IT RECRUITMENT SPECIALISTS LTD,459016,15750,896156575
BEIS,Met Office,2021-08-11,11 SERVICES,CHIEF FINANCIAL OFFICER,GIBRALTAR NYNEX COMMUNICATIONS LTD,459048,702,NOVAT
BEIS,Met Office,2021-08-04,08 SOFTWARE LICENCES,TECHNOLOGY AND CIO,GOOGLE IRELAND LTD,458808,38.75,6388047V
BEIS,Met Office,2021-08-11,04 CONTRACTORS,MARKETS,HAYS SPECIALIST RECRUITMENT LTD,458678,86.73,773695871
BEIS,Met Office,2021-08-04,04 CONTRACTORS,TECHNOLOGY AND CIO,HAYS SPECIALIST RECRUITMENT LTD,458723,567.58,773695871
BEIS,Met Office,2021-08-04,04 CONTRACTORS,MARKETS,HAYS SPECIALIST RECRUITMENT LTD,458809,371.7,773695871
BEIS,Met Office,2021-08-04,04 CONTRACTORS,PEOPLE,HAYS SPECIALIST RECRUITMENT LTD,458810,185.85,773695871
BEIS,Met Office,2021-08-06,04 CONTRACTORS,PEOPLE,HAYS SPECIALIST RECRUITMENT LTD,458811,126.56,773695871
BEIS,Met Office,2021-08-04,04 CONTRACTORS,PEOPLE,HAYS SPECIALIST RECRUITMENT LTD,458812,126.56,773695871
BEIS,Met Office,2021-08-04,04 CONTRACTORS,TECHNOLOGY AND CIO,HAYS SPECIALIST RECRUITMENT LTD,458813,567.58,773695871
BEIS,Met Office,2021-08-06,04 CONTRACTORS,TECHNOLOGY AND CIO,HAYS SPECIALIST RECRUITMENT LTD,458919,467.87,773695871
BEIS,Met Office,2021-08-18,04 CONTRACTORS,TECHNOLOGY AND CIO,HAYS SPECIALIST RECRUITMENT LTD,459133,567.59,773695871
BEIS,Met Office,2021-08-18,04 CONTRACTORS,MARKETS,HAYS SPECIALIST RECRUITMENT LTD,459135,371.7,773695871
BEIS,Met Office,2021-08-23,04 CONTRACTORS,TECHNOLOGY AND CIO,HAYS SPECIALIST RECRUITMENT LTD,459360,567.59,773695871
BEIS,Met Office,2021-08-23,04 CONTRACTORS,PROGRAMMES,HAYS SPECIALIST RECRUITMENT LTD,459369,371.7,773695871
BEIS,Met Office,2021-08-27,04 CONTRACTORS,TECHNOLOGY AND CIO,HAYS SPECIALIST RECRUITMENT LTD,459536,567.59,773695871
BEIS,Met Office,2021-08-18,13 MISCELLANEOUS,CHIEF FINANCIAL OFFICER,HEALIX INSURANCE SERVICES LTD,459184,38301.32,-
BEIS,Met Office,2021-08-18,13 MISCELLANEOUS,CHIEF FINANCIAL OFFICER,HEALIX INSURANCE SERVICES LTD,459185,1360.6,-
BEIS,Met Office,2021-08-18,13 MISCELLANEOUS,CHIEF FINANCIAL OFFICER,HEALIX INTERNATIONAL,459214,9893,127632909
BEIS,Met Office,2021-08-25,13 MISCELLANEOUS,CHIEF FINANCIAL OFFICER,HEALIX INTERNATIONAL,459432,351.9,127632909
BEIS,Met Office,2021-08-11,13 MISCELLANEOUS,PEOPLE,HEALTH MANAGEMENT LTD,458944,777.27,792250621
BEIS,Met Office,2021-08-09,06 ACCOMMODATION,PROGRAMMES,HICKMAN & SMITH ARCHITECTS LTD.,458621,2500,175031919
BEIS,Met Office,2021-08-06,11 SERVICES,SERVICES,HITACHI CAPITAL VEHICLE SOLUTIONS,458899,40,GB 823 8248 22
BEIS,Met Office,2021-08-11,11 SERVICES,PROGRAMMES,IAME LTD,459080,15500,140304468
BEIS,Met Office,2021-08-18,08 SOFTWARE LICENCES,TECHNOLOGY AND CIO,"IBL SOFTWARE ENGINEERING, SPOL S.R.O.",458551,7248.28,SK2020241883
BEIS,Met Office,2021-08-18,08 SOFTWARE LICENCES,TECHNOLOGY AND CIO,"IBL SOFTWARE ENGINEERING, SPOL S.R.O.",458551,29439.86,SK2020241883
BEIS,Met Office,2021-08-18,08 SOFTWARE LICENCES,MARKETS,"IBL SOFTWARE ENGINEERING, SPOL S.R.O.",458552,3933.39,SK2020241883
BEIS,Met Office,2021-08-18,11 SERVICES,PROGRAMMES,"IBL SOFTWARE ENGINEERING, SPOL S.R.O.",458591,28122.29,SK2020241883
BEIS,Met Office,2021-08-18,11 SERVICES,PROGRAMMES,"IBL SOFTWARE ENGINEERING, SPOL S.R.O.",458592,13430.57,SK2020241883
BEIS,Met Office,2021-08-18,11 SERVICES,PROGRAMMES,"IBL SOFTWARE ENGINEERING, SPOL S.R.O.",458592,393,SK2020241883
BEIS,Met Office,2021-08-04,08 SOFTWARE LICENCES,TECHNOLOGY AND CIO,Ibm United Kingdom Ltd,458790,9309,107328000
BEIS,Met Office,2021-08-04,08 SOFTWARE LICENCES,TECHNOLOGY AND CIO,Ibm United Kingdom Ltd,458807,9327.7,107328000
BEIS,Met Office,2021-08-20,11 SERVICES,TECHNOLOGY AND CIO,Ibm United Kingdom Ltd,459274,6184.16,107328000
BEIS,Met Office,2021-08-11,11 SERVICES,OFFICE OF THE CEO,INDEPENDENT AUDIT LIMITED,458947,16000,927183902
BEIS,Met Office,2021-08-06,11 SERVICES,SERVICES,INMARSAT SOLUTIONS (CANADA) INC,458822,42.99,766144223
BEIS,Met Office,2021-08-06,11 SERVICES,SERVICES,INMARSAT SOLUTIONS (CANADA) INC,458823,1003.39,766144223
BEIS,Met Office,2021-08-11,11 SERVICES,MARKETS,INSTITUTE OF WATER MODELLING (IWM) BANGLADESH,457187,15008.91,0014051470101
BEIS,Met Office,2021-08-11,11 SERVICES,MARKETS,INSTITUTE OF WATER MODELLING (IWM) BANGLADESH,457336,30143.32,0014051470101
BEIS,Met Office,2021-08-04,08 SOFTWARE LICENCES,MARKETS,"INTELLOVATIONS, LLC",10328,1491.18,-
BEIS,Met Office,2021-08-18,11 SERVICES,MARKETS,INTERNATIONAL ORGANISATION DEVELOPMENT LTD,459205,8090,729 42 46 18
BEIS,Met Office,2021-08-23,11 SERVICES,MARKETS,INTERNATIONAL ORGANISATION DEVELOPMENT LTD,459371,17790,729 42 46 18
BEIS,Met Office,2021-08-20,11 SERVICES,CHIEF FINANCIAL OFFICER,INTEROUTE COMMUNICATIONS LIMITED,459217,4931.94,832 7071 39
BEIS,Met Office,2021-08-25,11 SERVICES,MARKETS,IT.COM,10349,2308.37,-
BEIS,Met Office,2021-08-18,06 ACCOMMODATION,CHIEF FINANCIAL OFFICER,JAMES & MARCIA BENJAMIN,458949,520,-
BEIS,Met Office,2021-08-25,11 SERVICES,MARKETS,JCT Ltd,459320,924,714 3761 44
BEIS,Met Office,2021-08-25,11 SERVICES,PROGRAMMES,JEREMY BENN ASSOCIATES LIMITED,459215,13500,GB 665300941
BEIS,Met Office,2021-08-23,11 SERVICES,CHIEF FINANCIAL OFFICER,JERSEY TELECOM,459333,1284.32,NOTVATREG
BEIS,Met Office,2021-08-04,04 CONTRACTORS,OFFICE OF THE CEO,JOBSEEKERS RECRUITMENT SERVICES LTD,458826,674.88,130 1297 14
BEIS,Met Office,2021-08-04,04 CONTRACTORS,PEOPLE,JOBSEEKERS RECRUITMENT SERVICES LTD,458827,611.04,130 1297 14
BEIS,Met Office,2021-08-04,04 CONTRACTORS,MARKETS,JOBSEEKERS RECRUITMENT SERVICES LTD,458828,538.08,130 1297 14
BEIS,Met Office,2021-08-04,04 CONTRACTORS,PEOPLE,JOBSEEKERS RECRUITMENT SERVICES LTD,458829,674.88,130 1297 14
BEIS,Met Office,2021-08-04,04 CONTRACTORS,CHIEF FINANCIAL OFFICER,JOBSEEKERS RECRUITMENT SERVICES LTD,458830,674.88,130 1297 14
BEIS,Met Office,2021-08-04,04 CONTRACTORS,CHIEF FINANCIAL OFFICER,JOBSEEKERS RECRUITMENT SERVICES LTD,458831,410.4,130 1297 14
BEIS,Met Office,2021-08-11,04 CONTRACTORS,OFFICE OF THE CEO,JOBSEEKERS RECRUITMENT SERVICES LTD,459051,547.2,130 1297 14
BEIS,Met Office,2021-08-11,04 CONTRACTORS,PEOPLE,JOBSEEKERS RECRUITMENT SERVICES LTD,459052,674.88,130 1297 14
BEIS,Met Office,2021-08-11,04 CONTRACTORS,MARKETS,JOBSEEKERS RECRUITMENT SERVICES LTD,459058,547.2,130 1297 14
BEIS,Met Office,2021-08-11,04 CONTRACTORS,PEOPLE,JOBSEEKERS RECRUITMENT SERVICES LTD,459059,674.88,130 1297 14
BEIS,Met Office,2021-08-11,04 CONTRACTORS,CHIEF FINANCIAL OFFICER,JOBSEEKERS RECRUITMENT SERVICES LTD,459060,674.88,130 1297 14
BEIS,Met Office,2021-08-11,04 CONTRACTORS,CHIEF FINANCIAL OFFICER,JOBSEEKERS RECRUITMENT SERVICES LTD,459061,410.4,130 1297 14
BEIS,Met Office,2021-08-23,04 CONTRACTORS,CHIEF FINANCIAL OFFICER,JOBSEEKERS RECRUITMENT SERVICES LTD,459353,583.68,130 1297 14
BEIS,Met Office,2021-08-23,04 CONTRACTORS,PEOPLE,JOBSEEKERS RECRUITMENT SERVICES LTD,459354,547.2,130 1297 14
BEIS,Met Office,2021-08-23,04 CONTRACTORS,MARKETS,JOBSEEKERS RECRUITMENT SERVICES LTD,459356,674.88,130 1297 14
BEIS,Met Office,2021-08-23,04 CONTRACTORS,PEOPLE,JOBSEEKERS RECRUITMENT SERVICES LTD,459357,601.92,130 1297 14
BEIS,Met Office,2021-08-23,04 CONTRACTORS,CHIEF FINANCIAL OFFICER,JOBSEEKERS RECRUITMENT SERVICES LTD,459358,410.4,130 1297 14
BEIS,Met Office,2021-08-23,04 CONTRACTORS,OFFICE OF THE CEO,JOBSEEKERS RECRUITMENT SERVICES LTD,459359,674.88,130 1297 14
BEIS,Met Office,2021-08-27,04 CONTRACTORS,CHIEF FINANCIAL OFFICER,JOBSEEKERS RECRUITMENT SERVICES LTD,459451,410.4,130 1297 14
BEIS,Met Office,2021-08-25,04 CONTRACTORS,OFFICE OF THE CEO,JOBSEEKERS RECRUITMENT SERVICES LTD,459452,674.88,130 1297 14
BEIS,Met Office,2021-08-27,04 CONTRACTORS,MARKETS,JOBSEEKERS RECRUITMENT SERVICES LTD,459453,674.88,130 1297 14
BEIS,Met Office,2021-08-25,04 CONTRACTORS,PEOPLE,JOBSEEKERS RECRUITMENT SERVICES LTD,459454,674.88,130 1297 14
BEIS,Met Office,2021-08-25,04 CONTRACTORS,CHIEF FINANCIAL OFFICER,JOBSEEKERS RECRUITMENT SERVICES LTD,459455,547.2,130 1297 14
BEIS,Met Office,2021-08-27,04 CONTRACTORS,PEOPLE,JOBSEEKERS RECRUITMENT SERVICES LTD,459456,538.08,130 1297 14
BEIS,Met Office,2021-08-18,11 SERVICES,PEOPLE,KORN FERRY HAY GROUP LTD,459159,1950,GB 539135439
BEIS,Met Office,2021-08-04,11 SERVICES,SERVICES,Landmark Information Group Ltd,458834,5677.5,634509735
BEIS,Met Office,2021-08-04,11 SERVICES,SERVICES,Landmark Information Group Ltd,458835,72560,634509735
BEIS,Met Office,2021-08-04,11 SERVICES,SERVICES,Landmark Information Group Ltd,458836,6800,634509735
BEIS,Met Office,2021-08-04,11 SERVICES,SERVICES,Landmark Information Group Ltd,458837,77480,634509735
BEIS,Met Office,2021-08-20,11 SERVICES,SERVICES,Landmark Information Group Ltd,459286,84004,634509735
BEIS,Met Office,2021-08-20,11 SERVICES,SERVICES,Landmark Information Group Ltd,459287,80821.5,634509735
BEIS,Met Office,2021-08-13,11 SERVICES,PEOPLE,LB TRAINING LTD,459130,500,-
BEIS,Met Office,2021-08-25,11 SERVICES,PEOPLE,LB TRAINING LTD,459459,395,-
BEIS,Met Office,2021-08-27,11 SERVICES,PEOPLE,LB TRAINING LTD,459479,395,-
BEIS,Met Office,2021-08-02,11 SERVICES,CHIEF FINANCIAL OFFICER,LEASEDRIVE RENTAL MANAGEMENT LTD,458691,1016.85,733546040
BEIS,Met Office,2021-08-02,11 SERVICES,CHIEF FINANCIAL OFFICER,LICENCE BUREAU LTD,458744,141.2,820219467
BEIS,Met Office,2021-08-18,11 SERVICES,SCIENCE,"LINDE GAS ESPANA, S.A.U.",22917,3711.08,-
BEIS,Met Office,2021-08-25,08 SOFTWARE LICENCES,TECHNOLOGY AND CIO,LUCID SOFTWARE INC,10326,33460.56,-
BEIS,Met Office,2021-08-09,07 EQUIPMENT,SERVICES,M C ENGINEERING SERVICES,458760,1008.5,813172066
BEIS,Met Office,2021-08-09,07 EQUIPMENT,SERVICES,M C ENGINEERING SERVICES,458760,885.5,813172066
BEIS,Met Office,2021-08-20,07 EQUIPMENT,SERVICES,M C ENGINEERING SERVICES,459316,1245,813172066
BEIS,Met Office,2021-08-11,12 INTERNATIONAL,MARKETS,MACITECHSY SOLUTIONS,458897,1280,-
BEIS,Met Office,2021-08-23,11 SERVICES,PROGRAMMES,MARRONS PLANNING (SHAKESPEARE MARTINEAU LLP),459367,10577.4,GB1103031
BEIS,Met Office,2021-08-04,04 CONTRACTORS,PEOPLE,MATRIX SCM LIMITED,458672,186689.79,249 5734 68
BEIS,Met Office,2021-08-06,04 CONTRACTORS,PEOPLE,MATRIX SCM LIMITED,458914,181264.32,249 5734 68
BEIS,Met Office,2021-08-25,04 CONTRACTORS,PEOPLE,MATRIX SCM LIMITED,459140,225728.08,249 5734 68
BEIS,Met Office,2021-08-25,04 CONTRACTORS,PEOPLE,MATRIX SCM LIMITED,459362,170359.94,249 5734 68
BEIS,Met Office,2021-08-13,11 SERVICES,CHIEF FINANCIAL OFFICER,MAWASEM LTD,458933,35232.59,197694731
BEIS,Met Office,2021-08-20,11 SERVICES,SERVICES,MERKLE UK THREE LTD T/A MERKLE PERISCOPIX,458928,8315,843316243
BEIS,Met Office,2021-08-02,06 ACCOMMODATION,CHIEF FINANCIAL OFFICER,Mitie Landscapes Ltd,458681,366.97,GB 416 706 654
BEIS,Met Office,2021-08-02,06 ACCOMMODATION,CHIEF FINANCIAL OFFICER,Mitie Landscapes Ltd,458682,668.2,GB 416 706 654
BEIS,Met Office,2021-08-25,11 SERVICES,CHIEF FINANCIAL OFFICER,MITIE SECURITY LTD,458043,110.56,416706654
BEIS,Met Office,2021-08-25,11 SERVICES,CHIEF FINANCIAL OFFICER,MITIE SECURITY LTD,458820,1713.68,416706654
BEIS,Met Office,2021-08-04,11 SERVICES,CHIEF FINANCIAL OFFICER,MITIE SECURITY LTD,458832,915.75,416706654
BEIS,Met Office,2021-08-04,11 SERVICES,CHIEF FINANCIAL OFFICER,MITIE SECURITY LTD,458833,1369.59,416706654
BEIS,Met Office,2021-08-09,13 MISCELLANEOUS,CHIEF FINANCIAL OFFICER,MORAY COUNCIL,458901,81.23,663755506
BEIS,Met Office,2021-08-25,11 SERVICES,CHIEF FINANCIAL OFFICER,Morton Fraser LLP,459457,224,269129336
BEIS,Met Office,2021-08-06,06 ACCOMMODATION,CHIEF FINANCIAL OFFICER,MOUNT CHARLES GROUP LTD,458755,533.67,517116274
BEIS,Met Office,2021-08-24,TRADE CREDITORS,OTHER,NATWEST COMMERCIAL CARDS DIVISION,459325,121735.41,N/A
BEIS,Met Office,2021-08-24,07 EQUIPMENT,CHIEF FINANCIAL OFFICER,NATWEST COMMERCIAL CARDS DIVISION,459326,12743.82,N/A
BEIS,Met Office,2021-08-16,11 SERVICES,TECHNOLOGY AND CIO,NCC SERVICES  LIMITED,459161,1530,732334556
BEIS,Met Office,2021-08-04,11 SERVICES,MARKETS,NCCL AUDITORS,458737,10560,40-031300-E
BEIS,Met Office,2021-08-09,13 MISCELLANEOUS,CHIEF FINANCIAL OFFICER,NORSCOTT VENDING SERVICES LTD,458934,85,751402071
BEIS,Met Office,2021-08-09,13 MISCELLANEOUS,CHIEF FINANCIAL OFFICER,NORSCOTT VENDING SERVICES LTD,458939,118.4,751402071
BEIS,Met Office,2021-08-27,13 MISCELLANEOUS,CHIEF FINANCIAL OFFICER,NORSCOTT VENDING SERVICES LTD,459478,17.7,751402071
BEIS,Met Office,2021-08-18,11 SERVICES,SERVICES,NSSL GLOBAL LTD,10317,51.02,725151948
BEIS,Met Office,2021-08-18,11 SERVICES,SERVICES,NSSL GLOBAL LTD,10318,51.02,725151948
BEIS,Met Office,2021-08-02,06 ACCOMMODATION,CHIEF FINANCIAL OFFICER,OCS Group UK Limited,458738,24219.48,GB238034379
BEIS,Met Office,2021-08-02,06 ACCOMMODATION,CHIEF FINANCIAL OFFICER,OCS Group UK Limited,458738,109308.18,GB238034379
BEIS,Met Office,2021-08-25,06 ACCOMMODATION,CHIEF FINANCIAL OFFICER,OCS Group UK Limited,459368,24314.81,GB238034379
BEIS,Met Office,2021-08-25,06 ACCOMMODATION,CHIEF FINANCIAL OFFICER,OCS Group UK Limited,459449,-24314.81,GB238034379
BEIS,Met Office,2021-08-25,06 ACCOMMODATION,CHIEF FINANCIAL OFFICER,OCS Group UK Limited,459450,24385.08,GB238034379
BEIS,Met Office,2021-08-25,06 ACCOMMODATION,CHIEF FINANCIAL OFFICER,OCS Group UK Limited,459450,109308.18,GB238034379
BEIS,Met Office,2021-08-13,11 SERVICES,PROGRAMMES,OFFICE OF NATIONAL STATISTICS,458620,300,888 846 049
BEIS,Met Office,2021-08-06,11 SERVICES,MARKETS,OSBORNE CLARKE LLP,458815,2500,GB138187353
BEIS,Met Office,2021-08-02,11 SERVICES,MARKETS,PAUL WATKISS ASSOCIATES LTD,458735,26000,869587641
BEIS,Met Office,2021-08-25,11 SERVICES,MARKETS,PAUL WATKISS ASSOCIATES LTD,459370,5000,869587641
BEIS,Met Office,2021-08-04,11 SERVICES,SCIENCE,PLURALSIGHT,449764,268.81,EU826020045
BEIS,Met Office,2021-08-20,11 SERVICES,SCIENCE,Plymouth Marine Laboratory,458926,15000,927105830
BEIS,Met Office,2021-08-25,13 MISCELLANEOUS,CHIEF FINANCIAL OFFICER,POSTURITE (UK) LTD,457642,587.76,583565114
BEIS,Met Office,2021-08-25,13 MISCELLANEOUS,CHIEF FINANCIAL OFFICER,POSTURITE (UK) LTD,457643,50,583565114
BEIS,Met Office,2021-08-25,13 MISCELLANEOUS,CHIEF FINANCIAL OFFICER,POSTURITE (UK) LTD,458629,717.65,583565114
BEIS,Met Office,2021-08-04,13 MISCELLANEOUS,CHIEF FINANCIAL OFFICER,POSTURITE (UK) LTD,458804,20.86,583565114
BEIS,Met Office,2021-08-25,13 MISCELLANEOUS,CHIEF FINANCIAL OFFICER,POSTURITE (UK) LTD,458896,50,583565114
BEIS,Met Office,2021-08-16,13 MISCELLANEOUS,CHIEF FINANCIAL OFFICER,POSTURITE (UK) LTD,459123,50,583565114
BEIS,Met Office,2021-08-18,13 MISCELLANEOUS,CHIEF FINANCIAL OFFICER,POSTURITE (UK) LTD,459178,134.33,583565114
BEIS,Met Office,2021-08-27,FIXTURE & FITTINGS,CHIEF FINANCIAL OFFICER,POSTURITE (UK) LTD,459179,2040.42,583565114
BEIS,Met Office,2021-08-02,06 ACCOMMODATION,CHIEF FINANCIAL OFFICER,POWER NI ENERGY LTD,458692,339.44,617518142
BEIS,Met Office,2021-08-16,06 ACCOMMODATION,CHIEF FINANCIAL OFFICER,POWER NI ENERGY LTD,459128,389.56,617518142
BEIS,Met Office,2021-08-04,08 SOFTWARE LICENCES,TECHNOLOGY AND CIO,PRESENTATION CARTOGRAPHY LTD,458550,6600,-
BEIS,Met Office,2021-08-04,08 SOFTWARE LICENCES,TECHNOLOGY AND CIO,PRESENTATION CARTOGRAPHY LTD,458550,38000,-
BEIS,Met Office,2021-08-04,08 SOFTWARE LICENCES,TECHNOLOGY AND CIO,PRESENTATION CARTOGRAPHY LTD,458550,7000,-
BEIS,Met Office,2021-08-18,INFORMATION TECHNOLOGY,TECHNOLOGY AND CIO,PROBRAND LTD,459206,82020,580401565
BEIS,Met Office,2021-08-04,11 SERVICES,PEOPLE,PSYCHOLOGICA,458821,360,143530636
BEIS,Met Office,2021-08-04,11 SERVICES,SERVICES,Public Health England,458761,296,155579377
BEIS,Met Office,2021-08-25,10 EQUIPMENT MAINTENANCE,SERVICES,RAISE TELECOMS LTD,459321,15275,166016521
BEIS,Met Office,2021-08-27,10 EQUIPMENT MAINTENANCE,SERVICES,RAISE TELECOMS LTD,459525,18475,166016521
BEIS,Met Office,2021-08-11,10 EQUIPMENT MAINTENANCE,SERVICES,RAYMETRICS S.A. (GREEK ACCOUNT),22822,6635.2,EL999641589
BEIS,Met Office,2021-08-18,10 EQUIPMENT MAINTENANCE,SERVICES,RAYMETRICS S.A. (GREEK ACCOUNT),22870,940.85,EL999641589
BEIS,Met Office,2021-08-18,10 EQUIPMENT MAINTENANCE,SERVICES,RAYMETRICS S.A. (GREEK ACCOUNT),22916,10299.02,EL999641589
BEIS,Met Office,2021-08-25,10 EQUIPMENT MAINTENANCE,SERVICES,RAYMETRICS S.A. (GREEK ACCOUNT),22940,9063.87,EL999641589
BEIS,Met Office,2021-08-11,12 INTERNATIONAL,MARKETS,REDACTED PERSONAL DATA,10327,2545.91,-
BEIS,Met Office,2021-08-11,12 INTERNATIONAL,MARKETS,REDACTED PERSONAL DATA,10334,2545.91,-
BEIS,Met Office,2021-08-11,11 SERVICES,PEOPLE,REDACTED PERSONAL DATA,459078,1000,143043312
BEIS,Met Office,2021-08-16,11 SERVICES,SERVICES,REDACTED PERSONAL DATA,459166,950,262883631
BEIS,Met Office,2021-08-04,11 SERVICES,MARKETS,RIMES,10305,56378,-
BEIS,Met Office,2021-08-16,07 EQUIPMENT,TECHNOLOGY AND CIO,RITTAL LTD,458951,120.14,308285849
BEIS,Met Office,2021-08-16,07 EQUIPMENT,TECHNOLOGY AND CIO,RITTAL LTD,458951,901.04,308285849
BEIS,Met Office,2021-08-16,07 EQUIPMENT,TECHNOLOGY AND CIO,RITTAL LTD,458951,43.16,308285849
BEIS,Met Office,2021-08-16,07 EQUIPMENT,TECHNOLOGY AND CIO,RITTAL LTD,458951,19.16,308285849
BEIS,Met Office,2021-08-16,07 EQUIPMENT,TECHNOLOGY AND CIO,RITTAL LTD,458951,20.7,308285849
BEIS,Met Office,2021-08-16,07 EQUIPMENT,TECHNOLOGY AND CIO,RITTAL LTD,458951,1922.34,308285849
BEIS,Met Office,2021-08-25,11 SERVICES,SCIENCE,RIUVARBEL S.L,22956,3822.46,-
BEIS,Met Office,2021-08-11,06 ACCOMMODATION,CHIEF FINANCIAL OFFICER,RIVER RIDGE,459049,135.51,176286083
BEIS,Met Office,2021-08-11,11 SERVICES,SERVICES,ROCKSURE SYSTEMS LTD T/A PEOPLESAFE,459050,1728,859951462
BEIS,Met Office,2021-08-04,11 SERVICES,PROGRAMMES,ROWE IT LTD,458838,96925,924964394
BEIS,Met Office,2021-08-06,11 SERVICES,PROGRAMMES,ROWE IT LTD,458840,48377.5,924964394
BEIS,Met Office,2021-08-11,11 SERVICES,PROGRAMMES,ROWE IT LTD,458845,16500,924964394
BEIS,Met Office,2021-08-06,11 SERVICES,MARKETS,ROWE IT LTD,458846,4500,924964394
BEIS,Met Office,2021-08-06,11 SERVICES,PROGRAMMES,ROWE IT LTD,458848,5387.25,924964394
BEIS,Met Office,2021-08-06,11 SERVICES,PROGRAMMES,ROWE IT LTD,458848,37710.75,924964394
BEIS,Met Office,2021-08-06,11 SERVICES,PROGRAMMES,ROWE IT LTD,458848,10774.5,924964394
BEIS,Met Office,2021-08-11,11 SERVICES,PROGRAMMES,ROWE IT LTD,459047,3780,924964394
BEIS,Met Office,2021-08-11,13 MISCELLANEOUS,SERVICES,Royal Meteorological Society,459044,257.4,-
BEIS,Met Office,2021-08-16,13 MISCELLANEOUS,SERVICES,Royal Meteorological Society,459167,34.4,-
BEIS,Met Office,2021-08-02,FIXTURE & FITTINGS,CHIEF FINANCIAL OFFICER,S SMITH & SONS CARPETS LTD,458680,23815,456159529
BEIS,Met Office,2021-08-25,06 ACCOMMODATION,CHIEF FINANCIAL OFFICER,SABRELINE SPECIALIST MACHINE TOOL SERVICES,459192,682,GN-871-4660-13
BEIS,Met Office,2021-08-16,06 ACCOMMODATION,CHIEF FINANCIAL OFFICER,SAFESTORE LTD,459136,2815.28,722887607
BEIS,Met Office,2021-08-06,07 EQUIPMENT,PROGRAMMES,SB PRECISION ENGINEERING LTD,458860,205.2,137923104
BEIS,Met Office,2021-08-06,07 EQUIPMENT,PROGRAMMES,SB PRECISION ENGINEERING LTD,458860,268.2,137923104
BEIS,Met Office,2021-08-06,07 EQUIPMENT,PROGRAMMES,SB PRECISION ENGINEERING LTD,458860,195,137923104
BEIS,Met Office,2021-08-06,07 EQUIPMENT,PROGRAMMES,SB PRECISION ENGINEERING LTD,458860,417.6,137923104
BEIS,Met Office,2021-08-06,07 EQUIPMENT,PROGRAMMES,SB PRECISION ENGINEERING LTD,458860,108,137923104
BEIS,Met Office,2021-08-09,11 SERVICES,PROGRAMMES,SCIENCE & TECHNOLOGY FACILITIES COUNCIL,458895,12500,287461957
BEIS,Met Office,2021-08-11,06 ACCOMMODATION,CHIEF FINANCIAL OFFICER,Severn Trent Water Ltd,459041,550.47,486985565
BEIS,Met Office,2021-08-27,06 ACCOMMODATION,CHIEF FINANCIAL OFFICER,SHETLAND CLEANING SERVICES,459522,739.97,430028404
BEIS,Met Office,2021-08-04,08 SOFTWARE LICENCES,TECHNOLOGY AND CIO,SIGNAVIO GMBH,446423,-2185.68,DE265675123
BEIS,Met Office,2021-08-04,08 SOFTWARE LICENCES,TECHNOLOGY AND CIO,SIGNAVIO GMBH,457910,3500,DE265675123
BEIS,Met Office,2021-08-25,11 SERVICES,MARKETS,SOCIAL SENSING LTD,459375,2758,-
BEIS,Met Office,2021-08-23,11 SERVICES,MARKETS,SOCIAL SENSING LTD,459376,5768,-
BEIS,Met Office,2021-08-02,11 SERVICES,PROGRAMMES,SOCIAL VALUE PORTAL LIMITED,458366,18680,218806206
BEIS,Met Office,2021-08-06,11 SERVICES,MARKETS,SOFTWIRE TECHNOLOGY LIMITED,458900,58590,752 1253 57
BEIS,Met Office,2021-08-11,REVENUE,MARKETS,SORBONNE UNIVERSITE,22941,23604.96,FR90130023385
BEIS,Met Office,2021-08-23,06 ACCOMMODATION,CHIEF FINANCIAL OFFICER,South West Water Ltd,459332,80.24,236873674
BEIS,Met Office,2021-08-23,06 ACCOMMODATION,CHIEF FINANCIAL OFFICER,South West Water Ltd,459334,5091.27,236873674
BEIS,Met Office,2021-08-04,11 SERVICES,MARKETS,SOUTHSOUTHNORTH,458590,83395.73,4790219721
BEIS,Met Office,2021-08-06,11 SERVICES,MARKETS,SPOKE (INTERACTIVE) LTD,458931,700,840156451
BEIS,Met Office,2021-08-04,11 SERVICES,TECHNOLOGY AND CIO,SSE CONTRACTING LTD,458758,10393.84,382894546
BEIS,Met Office,2021-08-02,06 ACCOMMODATION,CHIEF FINANCIAL OFFICER,ST MODWEN VENTURES LTD,458732,15.03,975081008
BEIS,Met Office,2021-08-11,06 ACCOMMODATION,CHIEF FINANCIAL OFFICER,ST MODWEN VENTURES LTD,458952,862.5,975081008
BEIS,Met Office,2021-08-16,06 ACCOMMODATION,CHIEF FINANCIAL OFFICER,ST MODWEN VENTURES LTD,459081,12.45,975081008
BEIS,Met Office,2021-08-02,06 ACCOMMODATION,CHIEF FINANCIAL OFFICER,STONE HILL PARK LTD,458700,11.92,196461180
BEIS,Met Office,2021-08-11,11 SERVICES,CHIEF FINANCIAL OFFICER,SURE SOUTH ATLANTIC LTD,459021,4743,-
BEIS,Met Office,2021-08-11,11 SERVICES,CHIEF FINANCIAL OFFICER,SURE SOUTH ATLANTIC LTD,459022,770,-
BEIS,Met Office,2021-08-16,11 SERVICES,CHIEF FINANCIAL OFFICER,SURE SOUTH ATLANTIC LTD,459143,1200.14,NOVATREG
BEIS,Met Office,2021-08-18,11 SERVICES,CHIEF FINANCIAL OFFICER,SURE SOUTH ATLANTIC LTD (ST HELENA),459164,2907.86,30005
BEIS,Met Office,2021-08-11,11 SERVICES,PEOPLE,SWANTECH LOGISTICS LTD,459056,900,769332401
BEIS,Met Office,2021-08-06,11 SERVICES,CHIEF FINANCIAL OFFICER,TELEFONICA O2 UK LIMITED,458924,50.14,778603785
BEIS,Met Office,2021-08-06,11 SERVICES,CHIEF FINANCIAL OFFICER,TELEFONICA O2 UK LIMITED,458929,50.14,778603785
BEIS,Met Office,2021-08-11,11 SERVICES,CHIEF FINANCIAL OFFICER,TELEFONICA O2 UK LIMITED,458950,50.14,778603785
BEIS,Met Office,2021-08-13,11 SERVICES,CHIEF FINANCIAL OFFICER,TELEFONICA O2 UK LIMITED,459042,7802.22,778603785
BEIS,Met Office,2021-08-25,11 SERVICES,CHIEF FINANCIAL OFFICER,TELEFONICA O2 UK LIMITED,459446,690,778603785
BEIS,Met Office,2021-08-11,STOCK,SERVICES,TOTEX CORPORATION,456787,0,-
BEIS,Met Office,2021-08-11,STOCK,SERVICES,TOTEX CORPORATION,456787,0,-
BEIS,Met Office,2021-08-11,STOCK,SERVICES,TOTEX CORPORATION,456787,0,-
BEIS,Met Office,2021-08-11,STOCK,SERVICES,TOTEX CORPORATION,456787,0,-
BEIS,Met Office,2021-08-11,STOCK,SERVICES,TOTEX CORPORATION,456787,0,-
BEIS,Met Office,2021-08-11,STOCK,SERVICES,TOTEX CORPORATION,456787,0,-
BEIS,Met Office,2021-08-11,STOCK,SERVICES,TOTEX CORPORATION,456787,0,-
BEIS,Met Office,2021-08-11,STOCK,SERVICES,TOTEX CORPORATION,456787,0,-
BEIS,Met Office,2021-08-11,TRADE CREDITORS,SERVICES,TOTEX CORPORATION,456787,320,-
BEIS,Met Office,2021-08-11,TRADE CREDITORS,SERVICES,TOTEX CORPORATION,456787,819,-
BEIS,Met Office,2021-08-11,TRADE CREDITORS,SERVICES,TOTEX CORPORATION,456787,3801.6,-
BEIS,Met Office,2021-08-11,TRADE CREDITORS,SERVICES,TOTEX CORPORATION,456787,3720.6,-
BEIS,Met Office,2021-08-11,TRADE CREDITORS,SERVICES,TOTEX CORPORATION,456787,12121.2,-
BEIS,Met Office,2021-08-11,TRADE CREDITORS,SERVICES,TOTEX CORPORATION,456787,15955.8,-
BEIS,Met Office,2021-08-11,TRADE CREDITORS,SERVICES,TOTEX CORPORATION,456787,2274,-
BEIS,Met Office,2021-08-11,TRADE CREDITORS,SERVICES,TOTEX CORPORATION,456787,3800,-
BEIS,Met Office,2021-08-25,12 INTERNATIONAL,MARKETS,TOTEX CORPORATION,457301,20.9,-
BEIS,Met Office,2021-08-25,12 INTERNATIONAL,MARKETS,TOTEX CORPORATION,457301,415,-
BEIS,Met Office,2021-08-25,12 INTERNATIONAL,MARKETS,TOTEX CORPORATION,457301,3520,-
BEIS,Met Office,2021-08-20,06 ACCOMMODATION,MARKETS,Trinity House,453953,480,243120414
BEIS,Met Office,2021-08-20,06 ACCOMMODATION,MARKETS,Trinity House,453954,600,243120414
BEIS,Met Office,2021-08-11,07 EQUIPMENT,SERVICES,Trinity House,458765,10119.45,243120414
BEIS,Met Office,2021-08-11,11 SERVICES,SERVICES,Trinity House,458765,18976.16,243120414
BEIS,Met Office,2021-08-06,06 ACCOMMODATION,CHIEF FINANCIAL OFFICER,Trinity House,458766,425,243120414
BEIS,Met Office,2021-08-06,06 ACCOMMODATION,CHIEF FINANCIAL OFFICER,Trinity House,458766,325,243120414
BEIS,Met Office,2021-08-06,11 SERVICES,SERVICES,Trinity House,458788,51237.04,243120414
BEIS,Met Office,2021-08-18,11 SERVICES,TECHNOLOGY AND CIO,UKCLOUD LTD,458930,1658.4,172647982
BEIS,Met Office,2021-08-27,11 SERVICES,MARKETS,ULTRA ELECTRONICS LTD NUCLEAR CONTROL SYSTEMS,459466,232304.62,123340754
BEIS,Met Office,2021-08-27,11 SERVICES,MARKETS,ULTRA ELECTRONICS LTD NUCLEAR CONTROL SYSTEMS,459467,46602.46,123340754
BEIS,Met Office,2021-08-27,11 SERVICES,MARKETS,ULTRA ELECTRONICS LTD NUCLEAR CONTROL SYSTEMS,459469,0.03,123340754
BEIS,Met Office,2021-08-27,11 SERVICES,MARKETS,ULTRA ELECTRONICS LTD NUCLEAR CONTROL SYSTEMS,459469,2860.9,123340754
BEIS,Met Office,2021-08-27,11 SERVICES,MARKETS,ULTRA ELECTRONICS LTD NUCLEAR CONTROL SYSTEMS,459470,8651.19,123340754
BEIS,Met Office,2021-08-04,11 SERVICES,PROGRAMMES,UNIVERSITATBERN,453965,10074.01,280255
BEIS,Met Office,2021-08-25,11 SERVICES,PROGRAMMES,University College London,459285,51495.69,524371168
BEIS,Met Office,2021-08-13,11 SERVICES,PROGRAMMES,University Of Birmingham,457723,61989,729856187
BEIS,Met Office,2021-08-23,13 MISCELLANEOUS,SCIENCE,University Of East Anglia,459355,333.33,595183505
BEIS,Met Office,2021-08-25,13 MISCELLANEOUS,SCIENCE,University Of East Anglia,459372,1000,595183505
BEIS,Met Office,2021-08-18,11 SERVICES,PROGRAMMES,University Of Exeter,453636,39994.3,142047795
BEIS,Met Office,2021-08-18,11 SERVICES,PROGRAMMES,University Of Exeter,458862,98916,142047795
BEIS,Met Office,2021-08-23,11 SERVICES,SCIENCE,University Of Leeds,457411,83333.25,613451470
BEIS,Met Office,2021-08-04,11 SERVICES,MARKETS,University Of Leeds,458690,3259.7,613451470
BEIS,Met Office,2021-08-09,11 SERVICES,SCIENCE,University Of Leeds,458752,12697.9,613451470
BEIS,Met Office,2021-08-06,11 SERVICES,PROGRAMMES,University Of Leeds,458915,2000,613451470
BEIS,Met Office,2021-08-27,07 EQUIPMENT,SERVICES,University Of St Andrews,459476,10000,607606448
BEIS,Met Office,2021-08-06,08 SOFTWARE LICENCES,SERVICES,USERZOOM,458898,109200,GB977281769
BEIS,Met Office,2021-08-04,11 SERVICES,MARKETS,VAISALA LTD,458739,1250,336100011
BEIS,Met Office,2021-08-11,12 INTERNATIONAL,MARKETS,Vaisala Oyj,22624,761.51,FI01244162
BEIS,Met Office,2021-08-11,12 INTERNATIONAL,MARKETS,Vaisala Oyj,22624,40727.5,FI01244162
BEIS,Met Office,2021-08-11,07 EQUIPMENT,SERVICES,Vaisala Oyj,22782,-4827.79,FI01244162
BEIS,Met Office,2021-08-11,07 EQUIPMENT,SERVICES,Vaisala Oyj,22783,-22449.2,FI01244162
BEIS,Met Office,2021-08-11,07 EQUIPMENT,SERVICES,Vaisala Oyj,22784,-42846.59,FI01244162
BEIS,Met Office,2021-08-11,07 EQUIPMENT,SERVICES,Vaisala Oyj,22785,4827.79,FI01244162
BEIS,Met Office,2021-08-11,07 EQUIPMENT,SERVICES,Vaisala Oyj,22786,4827.78,FI01244162
BEIS,Met Office,2021-08-11,07 EQUIPMENT,SERVICES,Vaisala Oyj,22786,1158.67,FI01244162
BEIS,Met Office,2021-08-11,07 EQUIPMENT,SERVICES,Vaisala Oyj,22787,22449.2,FI01244162
BEIS,Met Office,2021-08-11,07 EQUIPMENT,SERVICES,Vaisala Oyj,22787,5387.81,FI01244162
BEIS,Met Office,2021-08-11,07 EQUIPMENT,SERVICES,Vaisala Oyj,22788,42846.59,FI01244162
BEIS,Met Office,2021-08-11,07 EQUIPMENT,SERVICES,Vaisala Oyj,22788,10283.18,FI01244162
BEIS,Met Office,2021-08-11,07 EQUIPMENT,SERVICES,Vaisala Oyj,22789,4827.78,FI01244162
BEIS,Met Office,2021-08-11,07 EQUIPMENT,SERVICES,Vaisala Oyj,22789,1158.67,FI01244162
BEIS,Met Office,2021-08-11,07 EQUIPMENT,SERVICES,Vaisala Oyj,22925,-4820.33,FI01244162
BEIS,Met Office,2021-08-11,07 EQUIPMENT,SERVICES,Vaisala Oyj,22927,-4820.33,FI01244162
BEIS,Met Office,2021-08-25,11 SERVICES,OFFICE OF THE CEO,VALERIE WARK ASSOCIATES LIMITED,459366,500,727398007
BEIS,Met Office,2021-08-20,11 SERVICES,CHIEF FINANCIAL OFFICER,Vodafone Ltd,459183,368.1,569953277
BEIS,Met Office,2021-08-20,11 SERVICES,CHIEF FINANCIAL OFFICER,Vodafone Ltd,459186,368,569953277
BEIS,Met Office,2021-08-20,11 SERVICES,CHIEF FINANCIAL OFFICER,Vodafone Ltd,459187,368,569953277
BEIS,Met Office,2021-08-20,11 SERVICES,CHIEF FINANCIAL OFFICER,Vodafone Ltd,459188,368,569953277
BEIS,Met Office,2021-08-25,11 SERVICES,MARKETS,WALNUT UNLIMITED LIMITED,459231,6715,648857968
BEIS,Met Office,2021-08-25,06 ACCOMMODATION,CHIEF FINANCIAL OFFICER,WEC GROUP LTD,459403,3167,176472775
BEIS,Met Office,2021-08-09,07 EQUIPMENT,TECHNOLOGY AND CIO,WESTERMO DATA COMMUNICATIONS LTD,458542,12.5,656570708
BEIS,Met Office,2021-08-09,07 EQUIPMENT,TECHNOLOGY AND CIO,WESTERMO DATA COMMUNICATIONS LTD,458542,4335,656570708
BEIS,Met Office,2021-08-11,06 ACCOMMODATION,PROGRAMMES,WILD FRONTIER ECOLOGY LTD,458736,1550,887469254
BEIS,Met Office,2021-08-04,11 SERVICES,TECHNOLOGY AND CIO,WIREFAST LTD,458816,4090.38,749536001
BEIS,Met Office,2021-08-04,11 SERVICES,TECHNOLOGY AND CIO,WIREFAST LTD,458825,1682.46,749536001
BEIS,Met Office,2021-08-18,11 SERVICES,MARKETS,WORLDPAY (UK) LTD,459071,54.67,991280207
BEIS,Met Office,2021-08-23,11 SERVICES,MARKETS,WORLDPAY (UK) LTD,459271,51.47,991280207
BEIS,Met Office,2021-08-23,11 SERVICES,MARKETS,WORLDPAY (UK) LTD,459288,53.75,991280207
BEIS,Met Office,2021-08-23,11 SERVICES,MARKETS,WORLDPAY (UK) LTD,459289,50.53,991280207
BEIS,Met Office,2021-08-23,11 SERVICES,MARKETS,WORLDPAY (UK) LTD,459290,67.68,991280207
BEIS,Met Office,2021-08-23,11 SERVICES,MARKETS,WORLDPAY (UK) LTD,459291,63.68,991280207
BEIS,Met Office,2021-08-23,11 SERVICES,MARKETS,WORLDPAY (UK) LTD,459292,97.07,991280207
BEIS,Met Office,2021-08-18,11 SERVICES,MARKETS,WORLDPAY LTD,458902,23.65,991280207
BEIS,Met Office,2021-08-18,11 SERVICES,MARKETS,WORLDPAY LTD,459070,51.47,991280207
BEIS,Met Office,2021-08-18,11 SERVICES,MARKETS,WORLDPAY LTD,459072,53.75,991280207
BEIS,Met Office,2021-08-18,11 SERVICES,MARKETS,WORLDPAY LTD,459073,50.53,991280207
BEIS,Met Office,2021-08-18,11 SERVICES,MARKETS,WORLDPAY LTD,459074,67.68,991280207
BEIS,Met Office,2021-08-18,11 SERVICES,MARKETS,WORLDPAY LTD,459075,63.68,991280207
BEIS,Met Office,2021-08-18,11 SERVICES,MARKETS,WORLDPAY LTD,459076,97.07,991280207
BEIS,Met Office,2021-08-06,06 ACCOMMODATION,CHIEF FINANCIAL OFFICER,XEIAD,458925,48335.25,811321091
BEIS,Met Office,2021-08-04,10 EQUIPMENT MAINTENANCE,SERVICES,YOUNG CALIBRATION LIMITED,458757,3250,673900720
BEIS,Met Office,2021-08-04,11 SERVICES,SERVICES,YOUNG CALIBRATION LIMITED,458757,15,673900720
BEIS,Met Office,2021-08-18,10 EQUIPMENT MAINTENANCE,SERVICES,YOUNG CALIBRATION LIMITED,459158,2925,673900720
BEIS,Met Office,2021-08-18,11 SERVICES,SERVICES,YOUNG CALIBRATION LIMITED,459158,15,673900720
BEIS,Met Office,2021-08-25,10 EQUIPMENT MAINTENANCE,SERVICES,YOUNG CALIBRATION LIMITED,459404,1530,673900720
BEIS,Met Office,2021-08-25,11 SERVICES,SERVICES,YOUNG CALIBRATION LIMITED,459404,15,673900720
